Workbook

Sheet شركة
I1: البيانات المطلوب أضافتها والخاصة | R1: يناير
I2: =+SUBTOTAL(9,I5:I8362) -> 27240 | J2: 33969 | K2: 0 | L2: 0 | M2: 6810 | N2: =+SUBTOTAL(9,N5:N8362) -> 0 | O2: =+SUBTOTAL(9,O6:O8362) -> 0 | P2: 40779 | Q2: 2996.4 | R2: 750 | S2: 260.02 | T2: 4006.42 | U2: =+SUBTOTAL(9,U5:U14055) -> 36772.58 | V2: =+U2 -> 36772.58 | AU2: =+U2 -> 36772.58
I3: أجمالى المرتبات وما فى حكمها | Q3: الخصومات | V3: =+P2-T2 -> 36772.58
A4: رقم الموظف | B4: اسم الموظف | C4: تاريخ التعيين | D4: رقم بطاقة الرقم القومى | E4: الرقم التأمينى | F4: الوظيفة الحالية | G4: تاريخ التأمين | H4: تاريخ الاستقالة | I4: المرتب التأمينى | J4: المرتب الأساسى | K4: علاوة غير منضمة | L4: ملبس | M4: إنتقال | N4: مكافأت | O4: أضاقى | P4: أجمالى المستحق | Q4: خصم حصة العامل من التأمينات | R4: سلفة | S4: جزاء | T4: أجمالى الخصومات | U4: صافى المرتب المتحصل عليه | V4: =+V2-V3 -> 0
A5: 233 | B5: السيد السيد اسماعيل مصطفى | C5: 1994-08-01 | D5: 1 | E5: 4 | F5: عامل نسيج | G5: 1994-08-01 | I5: 4540 | J5: 5661.5 | M5: 1135 | P5: =SUM(J5:O5) -> 6796.5 | Q5: 499.4 | R5: 750 | S5: 6.14 | T5: =SUM(Q5:S5) -> 1255.54 | U5: =P5-T5 -> 5540.96
A6: 235 | B6: طارق محمد احمد خليل | C6: 1994-08-01 | D6: 2 | E6: 5 | F6: عامل نسيج | G6: 1994-08-01 | I6: 3460 | J6: 4746 | M6: 865 | O6: 1516 | P6: =SUM(J6:O6) -> 7127 | Q6: 380.6 | R6: 300 | S6: 0.72 | T6: 681.32 | U6: 6445.68
A7: 243 | B7: رضا النوبى موسى محمد | C7: 1994-08-01 | D7: 3 | E7: 6 | F7: عامل نسيج | G7: 1994-08-01 | I7: 5800 | J7: 7962.5 | M7: 1450 | O7: 1710 | P7: 11122.5 | Q7: 638 | R7: 700 | S7: 11.82 | T7: 1349.82 | U7: 9772.68
A8: 244 | B8: عادل كمال على فراج | C8: 1997-09-22 | F8: عامل نسيج | G8: 1997-12-06 | I8: 4610 | J8: 5739 | M8: 1152.5 | O8: 5341 | P8: 12232.5 | Q8: 507.1 | R8: 0 | S8: 3.33 | T8: 510.43 | U8: 11722.07
A9: 251 | B9: حسن عبد العزيز حسن | C9: 1996-03-10 | F9: عامل نسيج | G9: 2002-08-01 | I9: 3050 | J9: 4144 | M9: 762.5 | O9: 3852 | P9: 8758.5 | Q9: 335.5 | R9: 0 | S9: 23 | T9: 358.5 | U9: 8400
A10: 256 | B10: محمود محمد محمود محمد | C10: 1996-12-21 | F10: عامل نسيج | G10: 1997-02-01 | I10: 3260 | J10: 4429.5 | M10: 815 | O10: 2492 | P10: 7736.5 | Q10: 358.6 | R10: 0 | S10: 2.19 | T10: 360.79 | U10: 7375.71
A11: 257 | B11: عيسى جابر محمد ابراهيم | C11: 1998-02-04 | F11: عامل نسيج | G11: 1998-05-06 | I11: 3630 | J11: 4503 | M11: 907.5 | O11: 3879 | P11: 9289.5 | Q11: 399.3 | R11: 0 | S11: 1.11 | T11: 400.41 | U11: 8889.09
A12: 260 | B12: هانى محمد ابراهيم شعبان | C12: 1995-01-18 | F12: عامل نسيج | G12: 1995-07-31 | I12: 3050 | J12: 4142 | M12: 762.5 | O12: 2679 | P12: 7583.5 | Q12: 335.5 | R12: 0 | S12: 0.34 | T12: 335.84 | U12: 7247.66
A13: 267 | B13: محمد عبد الوارث على على | C13: 1999-11-28 | F13: عامل نسيج | G13: 1999-12-20 | I13: 4650 | J13: 6703.5 | M13: 1162.5 | O13: 2300 | P13: 10166 | Q13: 511.5 | R13: 0 | S13: 6.96 | T13: 518.46 | U13: 9647.54
A14: 277 | B14: جمال ابو اليزيد على القط | C14: 1997-11-17 | F14: عامل نسيج | G14: 1997-11-22 | I14: 3210 | J14: 3831.67 | M14: 802.5 | O14: 1408 | P14: 6042.17 | Q14: 353.1 | R14: 0 | S14: 42.99 | T14: 396.09 | U14: 5646.08
A15: 404 | B15: محمد كامل على رضوان | C15: 1995-10-09 | F15: عامل نسيج | G15: 1995-10-09 | I15: 3970 | J15: 4939.5 | M15: 992.5 | O15: 4214 | P15: 10146 | Q15: 436.7 | R15: 0 | S15: 2.04 | T15: 438.74 | U15: 9707.26
A16: 456 | B16: محمود محمد زكريا بدر محمد | C16: 2007-01-06 | F16: عامل نسيج | G16: 2007-02-14 | I16: 2700 | J16: 3736.45 | M16: 675 | O16: 2670 | P16: 7081.45 | Q16: 297 | R16: 0 | S16: 24.21 | T16: 321.21 | U16: 6760.24
A17: 1552 | B17: هانى عبد الغنى احمد على ابويوسف | C17: 1997-03-03 | F17: عامل نسيج | G17: 1997-03-16 | I17: 2990 | J17: 4058.4 | M17: 747.5 | O17: 4371 | P17: 9176.9 | Q17: 328.9 | R17: 0 | S17: 2.35 | T17: 331.25 | U17: 8845.65
A18: 3789 | B18: شريف شاكر عبد الجيد شريف | C18: 2001-12-22 | F18: عامل نسيج | G18: 2009-09-01 | I18: 2190 | J18: 2971.5 | M18: 547.5 | O18: 2182 | P18: 5701 | Q18: 240.9 | R18: 0 | S18: 0.49 | T18: 241.39 | U18: 5459.61
A19: 4138 | B19: ايمن مصطفى حسين العسكرى | C19: 2000-06-04 | F19: عامل نسيج | G19: 2010-08-21 | I19: 3190 | J19: 4328.95 | M19: 797.5 | O19: 3996 | P19: 9122.45 | Q19: 350.9 | R19: 17 | S19: 0 | T19: 367.9 | U19: 8754.55
A20: 4882 | B20: شريف مصطفى محمود سالم | C20: 2004-01-04 | F20: عامل نسيج | G20: 2004-04-04 | I20: 2230 | J20: 2771.2 | M20: 557.5 | O20: 981 | P20: 4309.7 | Q20: 245.3 | R20: 0 | S20: 0 | T20: 245.3 | U20: 4064.4
A21: 5627 | B21: عمرو داود سيد احمد اسماعيل | C21: 2005-06-12 | F21: عامل نسيج | G21: 2005-08-10 | I21: 1700 | J21: 3021.7 | M21: 425 | O21: 2725 | P21: 6171.7 | Q21: 187 | R21: 0 | S21: 11.75 | T21: 198.75 | U21: 5972.95
A22: 5741 | B22: محمد محمود محمد ابراهيم | C22: 2005-08-02 | F22: عامل نسيج | G22: 2006-04-13 | I22: 2710 | J22: 3668.2 | M22: 677.5 | O22: 3396 | P22: 7741.7 | Q22: 298.1 | R22: 0 | S22: 0.61 | T22: 298.71 | U22: 7442.99
A23: 6073 | B23: حسن محمد حسن على سليمان | C23: 2005-10-15 | F23: عامل نسيج | G23: 2006-02-02 | I23: 2070 | J23: 2810.55 | M23: 517.5 | O23: 3595 | P23: 6923.05 | Q23: 227.7 | R23: 0 | S23: 11.98 | T23: 239.68 | U23: 6683.37
A24: 6091 | B24: محمد عبد النبى محمد احمد | C24: 2005-11-12 | F24: عامل نسيج | G24: 2006-02-14 | I24: 2920 | J24: 3603.7 | M24: 730 | O24: 2637 | P24: 6970.7 | Q24: 321.2 | R24: 0 | S24: 23 | T24: 344.2 | U24: 6626.5
A25: 6718 | B25: صابر عبد العال خضر محمود | C25: 2006-01-16 | F25: عامل نسيج | G25: 2006-03-19 | I25: 2720 | J25: 3361.7 | M25: 680 | O25: 3285 | P25: 7326.7 | Q25: 299.2 | R25: 0 | S25: 121.47 | T25: 420.67 | U25: 6906.03
A26: 7798 | B26: محمد خليل خليل الديب | C26: 2007-03-03 | F26: عامل نسيج | G26: 2007-03-03 | I26: 2600 | J26: 3518.7 | M26: 650 | O26: 2864 | P26: 7032.7 | Q26: 286 | R26: 0 | S26: 0.29 | T26: 286.29 | U26: 6746.41
A27: 7984 | B27: هانى جمعه عبد الله احمد | C27: 2007-06-24 | F27: عامل نسيج | G27: 2007-07-04 | I27: 1700 | J27: 2981.05 | M27: 425 | O27: 2776 | P27: 6182.05 | Q27: 187 | R27: 0 | S27: 0.45 | T27: 187.45 | U27: 5994.6
A28: 8064 | B28: محمد حمدى احمد عبد الغنى البنا | C28: 2007-07-21 | F28: عامل نسيج | G28: 2007-08-12 | I28: 2490 | J28: 3379.2 | M28: 622.5 | O28: 1185 | P28: 5186.7 | Q28: 273.9 | R28: 0 | S28: 0.84 | T28: 274.74 | U28: 4911.96
A29: 9362 | B29: سامى السعيد عبد العزيز المجنى | C29: 2009-10-14 | F29: عامل نسيج | G29: 2010-02-01 | I29: 2690 | J29: 3634.2 | M29: 672.5 | O29: 3399 | P29: 7705.7 | Q29: 295.9 | R29: 0 | S29: 12.35 | T29: 308.25 | U29: 7397.45
A30: 9391 | B30: حسام الدين احمد محمد حسنين | C30: 2009-10-27 | F30: عامل نسيج | G30: 2010-02-01 | I30: 2980 | J30: 4021.7 | M30: 745 | O30: 3628 | P30: 8394.7 | Q30: 327.8 | R30: 1200 | S30: 24 | T30: 1551.8 | U30: 6842.9
A31: 9482 | B31: محمد السيد عوض عوض | C31: 2010-01-13 | F31: عامل نسيج | G31: 2010-03-10 | I31: 1980 | J31: 2901 | M31: 495 | O31: 1252 | P31: 4648 | Q31: 217.8 | R31: 0 | S31: 0.65 | T31: 218.45 | U31: 4429.55
A32: 10154 | B32: سمير منصور حسين ابو تركية م-1 | C32: 2010-10-05 | F32: عامل نسيج | G32: 2010-12-04 | I32: 3450 | J32: 4266.4 | M32: 862.5 | O32: 3608 | P32: 8736.9 | Q32: 379.5 | R32: 0 | S32: 0 | T32: 379.5 | U32: 8357.4
A33: 10434 | B33: محمد جبر محمد سعد | C33: 2010-12-18 | F33: عامل نسيج | G33: 2011-01-01 | I33: 3000 | J33: 3695.45 | M33: 750 | O33: 3481 | P33: 7926.45 | Q33: 330 | R33: 0 | S33: 22.23 | T33: 352.23 | U33: 7574.22
A34: 10607 | B34: عماد فتحى السيد حفنى | C34: 2011-03-13 | F34: عامل نسيج | G34: 2011-04-07 | I34: 2150 | J34: 2974.2 | M34: 537.5 | O34: 2032 | P34: 5543.7 | Q34: 236.5 | R34: 0 | S34: 1.57 | T34: 238.07 | U34: 5305.63
A35: 10944 | B35: محمد عبد النبى عبد العزيز الرخ | C35: 2011-10-03 | F35: عامل نسيج | G35: 2011-11-15 | I35: 2120 | J35: 2925.45 | M35: 530 | O35: 2491 | P35: 5946.45 | Q35: 233.2 | R35: 0 | S35: 1.1 | T35: 234.3 | U35: 5712.15
A36: 11435 | B36: رمضان شحاتة محمود مبروك | C36: 2012-10-07 | F36: عامل نسيج | G36: 2012-12-05 | I36: 1700 | J36: 2927.35 | M36: 425 | O36: 1945 | P36: 5297.35 | Q36: 187 | R36: 0 | S36: 0.66 | T36: 187.66 | U36: 5109.69
A37: 12516 | B37: ربيع رجب عيد محمد | C37: 2015-06-02 | F37: عامل نسيج | G37: 2015-07-01 | I37: 1960 | J37: 2601.15 | M37: 490 | O37: 1764 | P37: 4855.15 | Q37: 215.6 | R37: 0 | S37: 78.14 | T37: 293.74 | U37: 4561.41
A38: 13497 | B38: رزق عبدالعاطى سالم ابراهيم | C38: 2018-07-11 | F38: عامل نسيج | G38: 2018-07-18 | I38: 1700 | J38: 2474.6 | M38: 425 | O38: 263 | P38: 3162.6 | Q38: 187 | R38: 0 | S38: 26.13 | T38: 213.13 | U38: 2949.47
A39: 13752 | B39: حسن محمد حسين منصور | C39: 2019-02-11 | F39: عامل نسيج | G39: 2019-06-01 | I39: 1700 | J39: 2675 | M39: 425 | O39: 570 | P39: 3670 | Q39: 187 | R39: 0 | S39: 0 | T39: 187 | U39: 3483
A40: 13762 | B40: محمود محمد السيد سالم | C40: 2019-02-17 | F40: عامل نسيج | G40: 2019-08-01 | I40: 1700 | J40: 2658 | M40: 425 | P40: 3083 | Q40: 187 | R40: 0 | S40: 6.48 | T40: 193.48 | U40: 2889.52
A41: 13778 | B41: عبد الله قرشى ابو الوفا | C41: 2020-06-25 | F41: عامل نسيج | G41: 2020-07-01 | I41: 1700 | J41: 2556.9 | M41: 425 | O41: 1847 | P41: 4828.9 | Q41: 187 | R41: 0 | S41: 0 | T41: 187 | U41: 4641.9
A42: 181 | B42: سمير حسن محمد على | C42: 1993-09-01 | F42: عامل صيانة | G42: 1994-07-21 | I42: 5780 | J42: 7167 | M42: 1445 | O42: 2537 | P42: 11149 | Q42: 635.8 | R42: 0 | S42: 23.99 | T42: 659.79 | U42: 10489.21
A43: 234 | B43: ياسر احمد عفيفى على | C43: 1995-01-01 | F43: عامل صيانة | G43: 1995-01-20 | I43: 4890 | J43: 6068 | M43: 1222.5 | O43: 3994 | P43: 11284.5 | Q43: 537.9 | R43: 0 | S43: 0 | T43: 537.9 | U43: 10746.6
A44: 273 | B44: شعبان بكر اسماعيل احمد | C44: 1997-11-11 | F44: عامل صيانة | G44: 1997-12-06 | I44: 4030 | J44: 5004 | M44: 1007.5 | O44: 2498 | P44: 8509.5 | Q44: 443.3 | R44: 0 | S44: 10.7 | T44: 454 | U44: 8055.5
A45: 4985 | B45: عادل توفيق احمد عبد الكريم | C45: 2004-03-09 | F45: عامل صيانة | G45: 2004-04-04 | I45: 4930 | J45: 6083.5 | M45: 1232.5 | O45: 3310 | P45: 10626 | Q45: 542.3 | R45: 0 | S45: 0.51 | T45: 542.81 | U45: 10083.19
A46: 7133 | B46: احمد عبده محمد عبده | C46: 2006-05-27 | F46: عامل صيانة | G46: 2006-08-01 | P46: 0 | T46: 0 | U46: 0
A47: 266 | B47: مجدى كمال عيسى تادرس | C47: 1995-12-14 | F47: عامل نسيج | G47: 1995-12-14 | I47: 4800 | J47: 6527 | M47: 1200 | O47: 1497 | P47: 9224 | Q47: 528 | R47: 0 | S47: 3.24 | T47: 531.24 | U47: 8692.76
A48: 276 | B48: عماد عبد الغنى احمد على | C48: 1996-08-17 | F48: عامل نسيج | G48: 1996-09-24 | I48: 2740 | J48: 3408.5 | M48: 685 | O48: 2019 | P48: 6112.5 | Q48: 301.4 | R48: 0 | S48: 8.38 | T48: 309.78 | U48: 5802.72
A49: 282 | B49: عادل فتحى محمد ابراهيم | C49: 1999-12-06 | F49: عامل نسيج | G49: 2000-01-23 | I49: 2410 | J49: 3283 | M49: 602.5 | O49: 1526 | P49: 5411.5 | Q49: 265.1 | R49: 0 | S49: 1.89 | T49: 266.99 | U49: 5144.51
A50: 5851 | B50: ممدوح احمد موسى عبد الرحمن | C50: 2005-08-29 | F50: عامل نسيج | G50: 2005-12-03 | I50: 2370 | J50: 2950.25 | M50: 592.5 | O50: 1723 | P50: 5265.75 | Q50: 260.7 | R50: 0 | S50: 10.36 | T50: 271.06 | U50: 4994.69
A51: 7414 | B51: محمد شعبان السيد خليفه | C51: 2006-11-01 | F51: عامل نسيج | G51: 2006-11-19 | I51: 1770 | J51: 2987.4 | M51: 442.5 | O51: 1353 | P51: 4782.9 | Q51: 194.7 | R51: 0 | S51: 0 | T51: 194.7 | U51: 4588.2
A52: 12607 | B52: سامح رمزى مسعود دلوعه | C52: 2015-08-13 | F52: عامل نسيج | G52: 2015-08-20 | P52: 0 | T52: 0 | U52: 0
A53: 452 | B53: سامح كمال عيسى تادرس | C53: 1992-06-01 | F53: مسئول متابعة انتاج وجوده | G53: 1995-05-28 | I53: 5090 | J53: 6907.5 | M53: 1272.5 | P53: 8180 | Q53: 559.9 | R53: 0 | S53: 13.95 | T53: 573.85 | U53: 7606.15
A54: 453 | B54: سمير بسيونى ابراهيم الحوفى | C54: 1995-01-01 | F54: مسئول متابعة انتاج وجوده | G54: عمالة مؤقتة | I54: 0 | J54: 4491 | M54: 0 | O54: 1336 | P54: 5827 | Q54: 0 | R54: 0 | S54: 0.32 | T54: 0.32 | U54: 5826.68
A55: 454 | B55: السيد مصطفى السيد الدرديرى | C55: 1994-08-14 | F55: مسئول متابعة انتاج وجوده | G55: 1995-07-30 | I55: 2900 | J55: 3936.5 | M55: 725 | O55: 1376 | P55: 6037.5 | Q55: 319 | R55: 0 | S55: 0 | T55: 319 | U55: 5718.5
A56: 4140 | B56: محمد مرسى ابراهيم ابو المجد | C56: 2001-08-19 | F56: مسئول متابعة انتاج وجوده | G56: 2010-09-15 | I56: 3330 | J56: 4517.35 | M56: 832.5 | O56: 1582 | P56: 6931.85 | Q56: 366.3 | R56: 0 | S56: 0.37 | T56: 366.67 | U56: 6565.18
A57: 5731 | B57: تامر سعيد زكريا سعيد | C57: 2005-07-30 | F57: مسئول تخطيط | G57: 2005-12-03 | I57: 5950 | J57: 7340 | M57: 1487.5 | P57: 8827.5 | Q57: 654.5 | R57: 0 | S57: 0 | T57: 654.5 | U57: 8173
A58: 7081 | B58: ايمن محمود على شامه | C58: 2006-05-06 | F58: مسئول متابعة انتاج وجوده | G58: 2006-06-01 | I58: 2220 | J58: 2743.35 | M58: 555 | O58: 211 | P58: 3509.35 | Q58: 244.2 | R58: 0 | S58: 1.36 | T58: 245.56 | U58: 3263.79
A59: 8073 | B59: عادل صلاح ابراهيم محمد | C59: 2007-07-25 | F59: مسئول متابعة انتاج وجوده | G59: 2007-09-27 | I59: 2010 | J59: 2725.85 | M59: 502.5 | O59: 1265 | P59: 4493.35 | Q59: 221.1 | R59: 0 | S59: 0 | T59: 221.1 | U59: 4272.25
A60: 9306 | B60: عادل محمد الوردانى احمد | C60: 2009-02-18 | F60: مسئول متابعة انتاج وجوده | G60: 2009-03-10 | I60: 1700 | J60: 2567.89 | M60: 425 | O60: 1467 | P60: 4459.89 | Q60: 187 | R60: 0 | S60: 0 | T60: 187 | U60: 4272.89
A61: 755 | B61: خالد ثابت عبده حموده | C61: 1999-11-22 | F61: عامل صباغة | G61: 1999-12-07 | I61: 2260 | J61: 3072.2 | M61: 565 | P61: 3637.2 | Q61: 248.6 | R61: 0 | S61: 6.96 | T61: 255.56 | U61: 3381.64
A62: 760 | B62: فتحى توفيق حسن سالم | C62: 1994-12-15 | F62: عامل صباغة | G62: 1995-07-31 | I62: 3600 | J62: 4459 | M62: 900 | O62: 1577 | P62: 6936 | Q62: 396 | R62: 19.5 | S62: 0 | T62: 415.5 | U62: 6520.5
A63: 775 | B63: محمد حسن ابراهيم السيد | C63: 1996-03-23 | F63: عامل صباغة | G63: 1996-04-13 | I63: 3430 | J63: 4256 | M63: 857.5 | O63: 2005 | P63: 7118.5 | Q63: 377.3 | R63: 0 | S63: 7.77 | T63: 385.07 | U63: 6733.43
A64: 4698 | B64: علاء السعيد عوف عبد الرحمن | C64: 2003-08-13 | F64: عامل صباغة | G64: 2003-10-15 | I64: 2460 | J64: 3327.45 | M64: 615 | O64: 1947 | P64: 5889.45 | Q64: 270.6 | R64: 0 | S64: 0.55 | T64: 271.15 | U64: 5618.3
A65: 5241 | B65: عمرو خميس ابو عجيله بدوى | C65: 2004-07-08 | F65: عامل صباغة | G65: 2004-09-01 | I65: 2480 | J65: 3361.45 | M65: 620 | O65: 1177 | P65: 5158.45 | Q65: 272.8 | R65: 0 | S65: 3.34 | T65: 276.14 | U65: 4882.31
A66: 5394 | B66: رأفت محمد مصطفى صالح | C66: 2004-02-21 | F66: عامل صباغة | G66: 2005-04-06 | I66: 2050 | J66: 3463.3 | M66: 512.5 | O66: 1175 | P66: 5150.8 | Q66: 225.5 | R66: 0 | S66: 0 | T66: 225.5 | U66: 4925.3
A67: 5463 | B67: رجب محمود عبد العزيز سعد | C67: 2005-04-17 | F67: عامل صباغة | G67: 2005-06-04 | I67: 2250 | J67: 3057.2 | M67: 562.5 | O67: 712 | P67: 4331.7 | Q67: 247.5 | R67: 0 | S67: 1.76 | T67: 249.26 | U67: 4082.44
A68: 5531 | B68: محمود فوزى عبد العليم عبد الناصر | C68: 2005-06-01 | F68: عامل صباغة | G68: 2005-07-11 | I68: 2600 | J68: 3516.7 | M68: 650 | O68: 1231 | P68: 5397.7 | Q68: 286 | R68: 0 | S68: 2.04 | T68: 288.04 | U68: 5109.66
A69: 5559 | B69: عمرو صبحى المحمدى امام | C69: 2005-06-07 | F69: عامل صباغة | G69: 2005-08-06 | I69: 2130 | J69: 2897.2 | M69: 532.5 | O69: 998 | P69: 4427.7 | Q69: 234.3 | R69: 0 | S69: 1.68 | T69: =SUM(Q69:S69) -> 235.98 | U69: =P69-T69 -> 4191.72
A70: 5762 | B70: مصطفى رزق ضيف اسماعيل | C70: 2005-08-08 | F70: عامل صباغة | G70: 2005-12-03 | I70: 2090 | J70: 3520.2 | M70: 522.5 | O70: 1189 | P70: =SUM(J70:O70) -> 5231.7 | Q70: 229.9 | R70: 0 | S70: 0.28 | T70: 230.18 | U70: 5001.52
A71: 6644 | B71: فضل احمد فضل جاد | C71: 2005-12-19 | F71: عامل صباغة | G71: 2006-02-14 | I71: 2150 | J71: 2914.2 | M71: 537.5 | O71: 1692 | P71: 5143.7 | Q71: 236.5 | R71: 11.5 | S71: 0.96 | T71: 248.96 | U71: 4894.74
A72: 7344 | B72: محمد سعد بدوى بدوى | C72: 2006-09-10 | F72: عامل صباغة | G72: 2006-11-11 | I72: 2150 | J72: 2689.27 | M72: 537.5 | O72: 1355 | P72: 4581.77 | Q72: 236.5 | R72: 0 | S72: 87.97 | T72: 324.47 | U72: 4257.3
A73: 7518 | B73: محمد رزق ضيف اسماعيل | C73: 2006-11-30 | F73: عامل صباغة | G73: 2007-01-08 | I73: 2140 | J73: 2905.05 | M73: 535 | O73: 1351 | P73: 4791.05 | Q73: 235.4 | R73: 250 | S73: 0.96 | T73: 486.36 | U73: 4304.69
A74: 8163 | B74: محمد رمضان سعد بدوى | C74: 2007-08-13 | F74: عامل صباغة | G74: 2007-09-24 | I74: 1760 | J74: 2962.75 | M74: 440 | O74: 672 | P74: 4074.75 | Q74: 193.6 | R74: 0 | S74: 2.86 | T74: 196.46 | U74: 3878.29
A75: 9432 | B75: محمد احمد فضل جاد م-1 | C75: 2009-12-01 | F75: عامل صباغة | G75: 2010-01-02 | I75: 1960 | J75: 3306.05 | M75: 490 | O75: 1117 | P75: 4913.05 | Q75: 215.6 | R75: 0 | S75: 0.78 | T75: 216.38 | U75: 4696.67
A76: 12649 | B76: ادريس جمعة معوض خميس | C76: 2015-10-11 | F76: عامل صباغة | G76: 2015-12-08 | I76: 1700 | J76: 2171.22 | M76: 425 | O76: 1051 | P76: 3647.22 | Q76: 187 | R76: 0 | S76: 22.58 | T76: 209.58 | U76: 3437.64
A77: 13005 | B77: امين محمد امين غريب | C77: 2016-12-25 | F77: عامل صباغة | G77: 2017-01-01 | I77: 1700 | J77: 2443.35 | M77: 425 | O77: 1120 | P77: 3988.35 | Q77: 187 | R77: 0 | S77: 3.13 | T77: 190.13 | U77: 3798.22
A78: 13119 | B78: محمد محمود كامل طه | C78: 2017-08-15 | F78: عامل صباغة | G78: 2017-08-22 | I78: 1700 | J78: 2274.35 | M78: 425 | O78: 1063 | P78: 3762.35 | Q78: 187 | R78: 0 | S78: 3.53 | T78: 190.53 | U78: 3571.82
A79: 13706 | B79: مصطفى عبد النبى مصطفى احمد | C79: 2018-11-15 | F79: عامل صباغة | G79: 2019-01-28 | P79: 0 | T79: 0 | U79: 0
A80: 14216 | B80: ابراهيم احمد سالم احمد | C80: 2020-12-19 | F80: عامل صباغة | G80: 2021-01-02 | P80: 0 | T80: 0 | U80: 0
A81: 752 | B81: حسام فاروق صديق صادق | C81: 1999-11-10 | F81: عامل صباغة | G81: 1999-12-20 | I81: 2650 | J81: 3967 | M81: 662.5 | O81: 1650 | P81: 6279.5 | Q81: 291.5 | R81: 300 | S81: 9.61 | T81: 601.11 | U81: 5678.39
A82: 5502 | B82: طارق محمد محروس مبروك | C82: 2005-05-10 | F82: مسئول متابعة انتاج وجوده | G82: 2005-07-11 | I82: 3760 | J82: 6372.05 | M82: 940 | P82: 7312.05 | Q82: 413.6 | R82: 0 | S82: 3.06 | T82: 416.66 | U82: 6895.39
A83: 8149 | B83: رضا عبد اللطيف احمد السيد | C83: 2007-08-04 | F83: مسئول متابعة انتاج وجوده | G83: 2007-09-27 | I83: 2370 | J83: 3260.45 | M83: 592.5 | O83: 1864 | P83: 5716.95 | Q83: 260.7 | R83: 100 | S83: 0 | T83: 360.7 | U83: 5356.25
A84: 8497 | B84: عبد الوهاب جمال ابراهيم السعيد | C84: 2007-12-01 | F84: مسئول متابعة انتاج وجوده | G84: 2008-01-14 | I84: 1700 | J84: 2673.4 | M84: 425 | O84: 1515 | P84: 4613.4 | Q84: 187 | R84: 0 | S84: 0.22 | T84: 187.22 | U84: 4426.18
A85: 8500 | B85: عبد الناصر خلف احمد شلنده | C85: 2007-12-01 | F85: مسئول متابعة انتاج وجوده | G85: 2008-01-14 | I85: 1700 | J85: 2684.4 | M85: 425 | O85: 1519 | P85: 4628.4 | Q85: 187 | R85: 0 | S85: 0.86 | T85: 187.86 | U85: 4440.54
A86: 13625 | B86: محمد جلال مرسى احمد مرسى | C86: 2018-10-01 | F86: مسئول متابعة انتاج وجوده | G86: 2019-01-01 | I86: 1770 | J86: 2393.4 | M86: 442.5 | O86: 835 | P86: 3670.9 | Q86: 194.7 | R86: 0 | S86: 0.58 | T86: 195.28 | U86: 3475.62
A87: 13993 | B87: الباشا عاطف عبد المعز حسين | C87: 2019-10-03 | F87: مسئول متابعة انتاج وجوده | G87: عمالة مؤقتة | I87: 0 | J87: 2215 | M87: 0 | O87: 664 | P87: 2879 | Q87: 0 | R87: 0 | S87: 1.25 | T87: 1.25 | U87: 2877.75
A88: 14067 | B88: ابراهيم حارس جاد الرب خليفة | C88: 2020-01-29 | F88: مسئول متابعة انتاج وجوده | G88: 2020-07-01 | I88: 1700 | J88: 2088.9 | M88: 425 | O88: 488 | P88: 3001.9 | Q88: 187 | R88: 0 | S88: 0.87 | T88: 187.87 | U88: 2814.03
A89: 1050 | B89: محمد خميس سليمان حيدر | C89: 1994-06-01 | F89: عامل صباغة | G89: 1995-12-10 | I89: 6710 | J89: 8312 | M89: 1677.5 | P89: 9989.5 | Q89: 738.1 | R89: 0 | S89: 58.15 | T89: 796.25 | U89: 9193.25
A90: 4103 | B90: جابر محمد عبد الرازق علام | C90: 2002-01-14 | F90: مهندس كميائى | G90: 2002-05-09 | I90: 7250 | J90: 8996 | M90: 1812.5 | P90: 10808.5 | Q90: 797.5 | R90: 0 | S90: 0.76 | T90: 798.26 | U90: 10010.24
A91: 5898 | B91: عماد فاروق فهمى بشاى | C91: 2005-09-18 | F91: مهندس كميائى | G91: 2006-02-02 | I91: 4450 | J91: 6037.5 | M91: 1112.5 | P91: 7150 | Q91: 489.5 | R91: 0 | S91: 1.5 | T91: 491 | U91: 6659
A92: 7611 | B92: وليد يونس فهيم السيد | C92: 2007-01-07 | F92: عامل صباغة | G92: 2007-02-14 | I92: 2140 | J92: 2896.05 | M92: 535 | O92: 1673 | P92: 5104.05 | Q92: 235.4 | R92: 300 | S92: 1.19 | T92: 536.59 | U92: 4567.46
A93: 8232 | B93: خالد محمد شعبان الصافى | C93: 2007-12-24 | F93: عامل صباغة | G93: 2010-05-03 | I93: 1840 | J93: 3095.9 | M93: 460 | P93: 3555.9 | Q93: 202.4 | R93: 0 | S93: 0.5 | T93: 202.9 | U93: 3353
A94: 12846 | B94: احمد محمد عبد اللطيف ابو عرب | C94: 2016-05-10 | F94: مهندس كميائى | G94: 2016-09-22 | I94: 2900 | J94: 3837.85 | M94: 725 | P94: 4562.85 | Q94: 319 | R94: 0 | S94: 0.32 | T94: 319.32 | U94: 4243.53
A95: 13735 | B95: محمد سعيد محمد محمود | C95: 2019-01-13 | F95: مهندس كميائى | G95: 2019-03-03 | I95: 2480 | J95: 3284.4 | M95: 620 | P95: 3904.4 | Q95: 272.8 | R95: 0 | S95: 1.09 | T95: 273.89 | U95: 3630.51
A96: 14223 | B96: عصام عبد الناصر عبد المقصود صديق | C96: 2021-01-10 | F96: مهندس كميائى | G96: 2021-02-01 | P96: 0 | T96: 0 | U96: 0
A97: 9591 | B97: رجب عبد الفتاح عبد الرؤوف محمد م-1 | C97: 2010-03-09 | F97: مهندس صباغة | G97: 2010-04-10 | I97: 5860 | J97: 7804.35 | M97: 1465 | P97: 9269.35 | Q97: 644.6 | R97: 0 | S97: 0 | T97: 644.6 | U97: 8624.75
A98: 13533 | B98: عمرو عبدالحليم سليمان عبدالحليم | C98: 2018-08-06 | F98: مهندس صباغة | G98: 2019-01-01 | P98: 0 | T98: 0 | U98: 0
A99: 13628 | B99: طاهر رجب طاهر احمد عبدالرحيم | C99: 2018-10-07 | F99: مهندس صباغة | G99: 2019-01-01 | P99: 0 | T99: 0 | U99: 0
A100: 13629 | B100: محمد عبداللطيف عبدالله عبدالفتاح | C100: 2018-10-07 | F100: مهندس صباغة | G100: 2019-01-01 | I100: 2700 | J100: 4797.4 | M100: 675 | P100: 5472.4 | Q100: 297 | R100: 0 | S100: 0.34 | T100: 297.34 | U100: 5175.06
A101: 13733 | B101: احمد نصر الدين ابو كمال | C101: 2019-01-15 | F101: مهندس صباغة | G101: 2019-02-01 | I101: 2700 | J101: 4805.75 | M101: 675 | P101: 5480.75 | Q101: 297 | R101: 0 | S101: 0 | T101: 297 | U101: 5183.75
A102: 913 | B102: محمود على يوسف احمد محمود | C102: 1995-08-01 | F102: عامل صباغة | G102: 1995-08-26 | I102: 5420 | J102: 7336 | M102: 1355 | P102: 8691 | Q102: 596.2 | R102: 0 | S102: 8.48 | T102: 604.68 | U102: 8086.32
A103: 1055 | B103: عادل محمد حسين العش | C103: 1996-12-24 | F103: عامل صباغة | G103: 1997-01-01 | I103: 2980 | J103: 4064.5 | M103: 745 | O103: 1894 | P103: 6703.5 | Q103: 327.8 | R103: 0 | S103: 0.33 | T103: 328.13 | U103: 6375.37
A104: 6619 | B104: محمد خميس عبد ربه على رضوان | C104: 2005-12-08 | F104: عامل صباغة | G104: 2006-02-14 | I104: 1880 | J104: 3172.7 | M104: 470 | O104: 1801 | P104: 5443.7 | Q104: 206.8 | R104: 0 | S104: 0 | T104: 206.8 | U104: 5236.9
A105: 9385 | B105: تامر صابر محمد جميل | C105: 2009-10-26 | F105: عامل صباغة | G105: 2009-12-01 | I105: 2220 | J105: 3009.3 | M105: 555 | O105: 1746 | P105: 5310.3 | Q105: 244.2 | R105: 0 | S105: 0 | T105: 244.2 | U105: 5066.1
A106: 12845 | B106: طارق شوقى كامل درويش | C106: 2016-05-17 | F106: مهندس كميائى | G106: 2016-08-15 | I106: 3000 | J106: 3980.85 | M106: 750 | P106: 4730.85 | Q106: 330 | R106: 0 | S106: 0 | T106: 330 | U106: 4400.85
A107: 14152 | B107: احمد ياقوت احمد محمد | C107: 2020-07-13 | F107: عامل صباغة | G107: 2020-08-01 | P107: 0 | T107: 0 | U107: 0
A108: 7355 | B108: ابراهيم محمد ابراهيم احمد | C108: 2006-09-21 | F108: عامل صباغة | G108: 2006-11-11 | I108: 2350 | J108: 2909.2 | M108: 587.5 | O108: 1019 | P108: 4515.7 | Q108: 258.5 | R108: 0 | S108: 0.45 | T108: 258.95 | U108: 4256.75
A109: 927 | B109: ايهاب طلعت احمد عبد اللطيف | C109: 1997-02-16 | F109: عامل صباغة | G109: 1997-05-02 | I109: 3940 | J109: 4890.5 | M109: 985 | P109: 5875.5 | Q109: 433.4 | R109: 0 | S109: 0 | T109: 433.4 | U109: 5442.1
A110: 3875 | B110: ابراهيم احمد علام عبد الله | C110: 2001-10-08 | F110: عامل صباغة | G110: 2001-11-01 | I110: 3240 | J110: 4019 | M110: 810 | O110: 1581 | P110: 6410 | Q110: 356.4 | R110: 25.5 | S110: 0 | T110: 381.9 | U110: 6028.1
A111: 754 | B111: رفعت محمد ابراهيم اسماعيل | C111: 1993-05-01 | F111: عامل صباغة | G111: 1995-12-10 | I111: 5990 | J111: 7428 | M111: 1497.5 | P111: 8925.5 | Q111: 658.9 | R111: 0 | S111: 0 | T111: 658.9 | U111: 8266.6
A112: 762 | B112: اسماعيل احمد عبد الجليل جمعه | C112: 1994-09-01 | F112: عامل صباغة | G112: 1995-12-10 | I112: 6010 | J112: 7444.5 | M112: 1502.5 | P112: 8947 | Q112: 661.1 | R112: 0 | S112: 0 | T112: 661.1 | U112: 8285.9
A113: 776 | B113: احمد عبد الحق ابو العنين حنفى | C113: 1996-05-18 | F113: عامل صباغة | G113: 1996-06-01 | I113: 3780 | J113: 6394 | M113: 945 | P113: 7339 | Q113: 415.8 | R113: 730 | S113: 3.08 | T113: 1148.88 | U113: 6190.12
A114: 757 | B114: جمعه عبد الفتاح النوبى عبد القادر | C114: 1995-07-01 | F114: عامل صباغة | G114: 1995-07-31 | I114: 5680 | J114: 7053.5 | M114: 1420 | P114: 8473.5 | Q114: 624.8 | R114: 0 | S114: 0 | T114: 624.8 | U114: 7848.7
A115: 777 | B115: عادل خميس ابو عجيله بدوى | C115: 1996-06-09 | F115: عامل صباغة | G115: 1996-07-01 | I115: 3080 | J115: 3816.5 | M115: 770 | O115: 1786 | P115: 6372.5 | Q115: 338.8 | R115: 0 | S115: 1.6 | T115: 340.4 | U115: 6032.1
A116: 780 | B116: محمد صالح عطية الله محمد | C116: 1998-10-21 | F116: عامل صباغة | G116: 1998-12-13 | I116: 2960 | J116: 3733.5 | M116: 740 | O116: 880 | P116: 5353.5 | Q116: 325.6 | R116: 0 | S116: 0.31 | T116: 325.91 | U116: 5027.59
A117: 783 | B117: محمد محمود على السيد | C117: 1996-08-17 | F117: عامل صباغة | G117: 1997-11-01 | I117: 3150 | J117: 3917 | M117: 787.5 | P117: 4704.5 | Q117: 346.5 | R117: 0 | S117: 0 | T117: 346.5 | U117: 4358
A118: 5267 | B118: صبحى عبد الله عامر ابو الخير | C118: 2004-10-11 | F118: عامل صباغة | G118: 2004-11-06 | I118: 2200 | J118: 2725.7 | M118: 550 | P118: 3275.7 | Q118: 242 | R118: 0 | S118: 1.58 | T118: 243.58 | U118: 3032.12
A119: 7228 | B119: احمد محمد حسين عبد الغنى | C119: 2006-07-26 | F119: عامل صباغة | G119: 2006-09-02 | I119: 2140 | J119: 2899.7 | M119: 535 | O119: 674 | P119: 4108.7 | Q119: 235.4 | R119: 0 | S119: 2.36 | T119: 237.76 | U119: 3870.94
A120: 8018 | B120: ابراهيم محمد ابراهيم رزق | C120: 2007-07-07 | F120: عامل صباغة | G120: 2007-07-17 | P120: 0 | T120: 0 | U120: 0
A121: 8154 | B121: مصطفى صادق توفيق عبد الرحيم | C121: 2007-08-12 | F121: عامل صباغة | G121: 2007-09-27 | I121: 1780 | J121: 2999.05 | M121: 445 | O121: 1016 | P121: 4460.05 | Q121: 195.8 | R121: 0 | S121: 0.24 | T121: 196.04 | U121: 4264.01
A122: 9473 | B122: محمد رضا حسين عفيفى | C122: 2015-09-27 | F122: عامل صباغة | G122: 2015-10-13 | I122: 1700 | J122: 2263.35 | M122: 425 | O122: 1315 | P122: 4003.35 | Q122: 187 | R122: 200 | S122: 2.42 | T122: 389.42 | U122: 3613.93
A123: 12639 | B123: عاصم محمد فرج فرج | C123: 2015-09-19 | F123: عامل صباغة | G123: 2016-07-10 | I123: 1700 | J123: 2266.35 | M123: 425 | O123: 796 | P123: 3487.35 | Q123: 187 | R123: 0 | S123: 0.19 | T123: 187.19 | U123: 3300.16
A124: 13248 | B124: محمد عوض محمد عبدالمقصود | C124: 2020-06-25 | F124: عامل صباغة | G124: 2019-02-01 | P124: 0 | T124: 0 | U124: 0
A125: 13742 | B125: احمد بشير ابراهيم | C125: 2019-01-22 | F125: عامل صباغة | G125: 2019-02-11 | I125: 1700 | J125: 2024.9 | M125: 425 | O125: 722 | P125: 3171.9 | Q125: 187 | R125: 0 | S125: 0 | T125: 187 | U125: 2984.9
A126: 14074 | B126: عبد الله محمد بدر على | C126: 2020-02-09 | F126: عامل صباغة | G126: 2020-06-01 | I126: 1700 | J126: 1919.9 | M126: 425 | O126: 1146 | P126: 3490.9 | Q126: 187 | R126: 200 | S126: 2.24 | T126: 389.24 | U126: 3101.66
A127: 794 | B127: احمد السعيد فهمى محمد | C127: 1997-05-05 | F127: عامل صباغة | G127: 1997-06-01 | I127: 3510 | J127: 4854.7 | M127: 877.5 | O127: 2575 | P127: 8307.2 | Q127: 386.1 | R127: 0 | S127: 0 | T127: 386.1 | U127: 7921.1
A128: 5820 | B128: احمد ابراهيم على مخلوف | C128: 2005-08-13 | F128: مهندس كميائى | G128: 2005-10-09 | I128: 4580 | J128: 6194.5 | M128: 1145 | P128: 7339.5 | Q128: 503.8 | R128: 0 | S128: 0 | T128: 503.8 | U128: 6835.7
A129: 8223 | B129: عبد الحميد يحيى عبد الحميد احمد | C129: 2007-09-01 | F129: مهندس كميائى | G129: 2007-09-24 | I129: 4300 | J129: 5582.05 | M129: 1075 | P129: 6657.05 | Q129: 473 | R129: 0 | S129: 0 | T129: 473 | U129: 6184.05
A130: 8566 | B130: حسن ابراهيم محمد محمود | C130: 2008-01-28 | F130: عامل صباغة | G130: 2008-03-01 | I130: 4200 | J130: 5546.05 | M130: 1050 | P130: 6596.05 | Q130: 462 | R130: 0 | S130: 0.92 | T130: 462.92 | U130: 6133.13
A131: 283 | B131: عادل عبد البدير عويضه غالى | C131: 1996-12-24 | F131: عامل صباغة | G131: 1997-01-01 | I131: 2930 | J131: 3637 | M131: 732.5 | O131: 858 | P131: 5227.5 | Q131: 322.3 | R131: 0 | S131: 11.53 | T131: 333.83 | U131: 4893.67
A132: 572 | B132: عبد المنعم حسين عبد الحليم محمد | C132: 1993-06-01 | F132: عامل صباغة | G132: 1995-12-16 | I132: 5460 | J132: 6741 | M132: 1365 | O132: 3203 | P132: 11309 | Q132: 600.6 | R132: 0 | S132: 0 | T132: 600.6 | U132: 10708.4
A133: 756 | B133: محمد يونس مصطفى محمد | C133: 1994-12-15 | F133: عامل صباغة | G133: 1995-07-31 | I133: 3870 | J133: 4782 | M133: 967.5 | O133: 1133 | P133: 6882.5 | Q133: 425.7 | R133: 0 | S133: 0.4 | T133: =SUM(Q133:S133) -> 426.1 | U133: =P133-T133 -> 6456.4
A134: 761 | B134: ياسر احمد عبد الغنى احمد | C134: 1994-09-06 | F134: عامل صباغة | G134: 1995-12-16 | I134: 3600 | J134: 4497 | M134: 900 | P134: =SUM(J134:O134) -> 5397 | Q134: 396 | R134: 0 | S134: 0.73 | T134: 396.73 | U134: 5000.27
A135: 906 | B135: محمد ابو المعاطى عبد النبى مرسى | C135: 1994-12-15 | F135: عامل صباغة | G135: 1995-08-01 | I135: 3530 | J135: 4370 | M135: 882.5 | O135: 2053 | P135: 7305.5 | Q135: 388.3 | R135: 0 | S135: 7.58 | T135: 395.88 | U135: 6909.62
A136: 910 | B136: سعيد على يوسف احمد محمود | C136: 1995-07-01 | F136: عامل صباغة | G136: 1995-07-31 | I136: 3740 | J136: 5077.5 | M136: 935 | O136: 2377 | P136: 8389.5 | Q136: 411.4 | R136: 17 | S136: 0 | T136: 428.4 | U136: 7961.1
A137: 922 | B137: رمضان احمد سرور السيد | C137: 1997-08-14 | F137: عامل صباغة | G137: 1997-08-20 | I137: 3040 | J137: 3779.1 | M137: 760 | O137: 1321 | P137: 5860.1 | Q137: 334.4 | R137: 0 | S137: 2.79 | T137: 337.19 | U137: 5522.91
A138: 925 | B138: اسامه محمد اسماعيل عباس | C138: 2004-11-27 | F138: عامل صباغة | G138: 2004-12-01 | I138: 3120 | J138: 4213.7 | M138: 780 | O138: 2465 | P138: 7458.7 | Q138: 343.2 | R138: 0 | S138: 0 | T138: 343.2 | U138: 7115.5
A139: 926 | B139: خالد عبد الله عامر ابوالخير | C139: 1994-04-06 | F139: عامل صباغة | G139: 1995-05-20 | I139: 3390 | J139: 4254 | M139: 847.5 | O139: 2470 | P139: 7571.5 | Q139: 372.9 | R139: 0 | S139: 1.39 | T139: 374.29 | U139: 7197.21
A140: 931 | B140: على محمود على السيد | C140: 1998-01-10 | F140: عامل صباغة | G140: 1998-01-21 | I140: 2810 | J140: 3827 | M140: 702.5 | P140: 4529.5 | Q140: 309.1 | R140: 0 | S140: 5.35 | T140: 314.45 | U140: 4215.05
A141: 932 | B141: ياسر محمد سيد محمد | C141: 1999-08-16 | F141: عامل صباغة | G141: 1999-08-25 | I141: 2780 | J141: 3781.5 | M141: 695 | O141: 2199 | P141: 6675.5 | Q141: 305.8 | R141: 0 | S141: 0.94 | T141: 306.74 | U141: 6368.76
A142: 938 | B142: محمد كمال حسن على | C142: 1998-09-29 | F142: عامل صباغة | G142: 1998-09-29 | I142: 3280 | J142: 4073.5 | M142: 820 | O142: 1919 | P142: 6812.5 | Q142: 360.8 | R142: 0 | S142: 1.37 | T142: 362.17 | U142: 6450.33
A143: 1389 | B143: فؤاد كمال محمد مرسى | C143: 1999-04-04 | F143: عامل صباغة | G143: 1999-04-21 | I143: 3540 | J143: 4799.5 | M143: 885 | O143: 2804 | P143: 8488.5 | Q143: 389.4 | R143: 19.5 | S143: 0 | T143: 408.9 | U143: 8079.6
A144: 4239 | B144: عبدالجواد محمد عبدالجوادعبدالسلام | C144: 2002-07-04 | F144: عامل صباغة | G144: 2002-09-02 | I144: 2690 | J144: 3324.2 | M144: 672.5 | O144: 1951 | P144: 5947.7 | Q144: 295.9 | R144: 0 | S144: 4.11 | T144: 300.01 | U144: 5647.69
A145: 5042 | B145: محمد سعيد عبد الوهاب محمد | C145: 2008-02-17 | F145: عامل صباغة | G145: 2008-04-01 | I145: 2270 | J145: 3077.55 | M145: 567.5 | O145: 1072 | P145: 4717.05 | Q145: 249.7 | R145: 0 | S145: 1.79 | T145: 251.49 | U145: 4465.56
A146: 5523 | B146: سعيد بدير شعبان ابراهيم | C146: 2005-05-21 | F146: عامل صباغة | G146: 2005-07-11 | I146: 2710 | J146: 3654.55 | M146: 677.5 | O146: 1697 | P146: 6029.05 | Q146: 298.1 | R146: 0 | S146: 0 | T146: 298.1 | U146: 5730.95
A147: 5850 | B147: احمد رأفت محمد يوسف | C147: 2005-08-29 | F147: عامل صباغة | G147: 2005-10-09 | I147: 1960 | J147: 3298.05 | M147: 490 | O147: 1489 | P147: 5277.05 | Q147: 215.6 | R147: 0 | S147: 1.59 | T147: 217.19 | U147: 5059.86
A148: 6937 | B148: عيد فؤاد محمد عبد الحميد | C148: 2006-03-20 | F148: عامل صباغة | G148: 2006-04-13 | P148: 0 | T148: 0 | U148: 0
A149: 7609 | B149: صبحى سليمان سليمان عبد الحليم | C149: 2007-01-09 | F149: عامل صباغة | G149: 2007-02-14 | I149: 2290 | J149: 3102.55 | M149: 572.5 | O149: 1790 | P149: 5465.05 | Q149: 251.9 | R149: 0 | S149: 1.54 | T149: 253.44 | U149: 5211.61
A150: 7665 | B150: احمد ابراهيم ياقوت اسماعيل | C150: 2007-01-16 | F150: عامل صباغة | G150: 2007-02-20 | I150: 2410 | J150: 3549.45 | M150: 602.5 | O150: 1762 | P150: 5913.95 | Q150: 265.1 | R150: 300 | S150: 2.49 | T150: 567.59 | U150: 5346.36
A151: 8460 | B151: يوسف محمد حسن خالد | C151: 2007-12-04 | F151: عامل صباغة | G151: 2008-01-01 | I151: 2290 | J151: 3096.65 | M151: 572.5 | O151: 718 | P151: 4387.15 | Q151: 251.9 | R151: 0 | S151: 0.26 | T151: 252.16 | U151: 4134.99
A152: 9341 | B152: مراد فكرى مصطفى صالح م-1 | C152: 2009-10-03 | F152: عامل صباغة | G152: 2009-10-18 | I152: 2420 | J152: 3268.7 | M152: 605 | O152: 1146 | P152: 5019.7 | Q152: 266.2 | R152: 10 | S152: 0 | T152: 276.2 | U152: 4743.5
A153: 9405 | B153: محمود سليمان سليمان عبد الحليم | C153: 2009-11-05 | F153: عامل صباغة | G153: 2009-12-01 | I153: 2240 | J153: 3030.05 | M153: 560 | O153: 1761 | P153: 5351.05 | Q153: 246.4 | R153: 0 | S153: 1.51 | T153: 247.91 | U153: 5103.14
A154: 9520 | B154: محمد عبد الحليم سليمان عبد الحليم | C154: 2010-01-23 | F154: عامل صباغة | G154: 2010-03-10 | I154: 1840 | J154: 3108.05 | M154: 460 | O154: 1400 | P154: 4968.05 | Q154: 202.4 | R154: 0 | S154: 1.48 | T154: 203.88 | U154: 4764.17
A155: 9590 | B155: ياسر قاسم عبد الخالق عبد السلام | C155: 2010-03-08 | F155: عامل صباغة | G155: 2010-04-10 | I155: 2350 | J155: 3181.7 | M155: 587.5 | O155: 1115 | P155: 4884.2 | Q155: 258.5 | R155: 0 | S155: 0 | T155: 258.5 | U155: 4625.7
A156: 9608 | B156: سعد محمود سعد محمود م-1 | C156: 2010-03-21 | F156: عامل صباغة | G156: 2010-04-10 | I156: 1950 | J156: 2649.7 | M156: 487.5 | O156: 1543 | P156: 4680.2 | Q156: 214.5 | R156: 0 | S156: 3.89 | T156: 218.39 | U156: 4461.81
A157: 9987 | B157: احمد محمد احمد النجار-م1 | C157: 2010-08-19 | F157: عامل صباغة | G157: 2010-08-25 | I157: 1880 | J157: 2922.07 | M157: 470 | O157: 1403 | P157: 4795.07 | Q157: 206.8 | R157: 0 | S157: 91.2 | T157: 298 | U157: 4497.07
A158: 10003 | B158: عبد الجليل عوض عبد الجليل عبد الحميد | C158: 2010-08-24 | F158: عامل صباغة | G158: 2010-08-25 | I158: 2300 | J158: 3125.75 | M158: 575 | O158: 1438 | P158: 5138.75 | Q158: 253 | R158: 0 | S158: 0 | T158: 253 | U158: 4885.75
A159: 10016 | B159: احمد اسماعيل خميس بركات | C159: 2010-08-26 | F159: عامل صباغة | G159: 2010-09-18 | I159: 1930 | J159: 2616.7 | M159: 482.5 | O159: 1213 | P159: 4312.2 | Q159: 212.3 | R159: 0 | S159: 3.4 | T159: 215.7 | U159: 4096.5
A160: 10704 | B160: فكرى كمال فهمى ميخائيل | C160: 2011-04-28 | F160: عامل صباغة | G160: 2011-05-21 | I160: 2210 | J160: 2735.55 | M160: 552.5 | O160: 641 | P160: 3929.05 | Q160: 243.1 | R160: 0 | S160: 3.45 | T160: 246.55 | U160: 3682.5
A161: 10887 | B161: محمد السيد محمد الحداد | C161: 2011-08-24 | F161: عامل صباغة | G161: 2011-09-20 | I161: 2060 | J161: 2105.05 | M161: 352.8 | P161: 2457.85 | Q161: 226.6 | R161: 0 | S161: 505 | T161: 731.6 | U161: 1726.25
A162: 11419 | B162: سعيد نصيب يوسف محمد الدمنى | C162: 2012-08-30 | F162: عامل صباغة | G162: 2012-10-18 | I162: 1870 | J162: 2530.85 | M162: 467.5 | O162: 1172 | P162: 4170.35 | Q162: 205.7 | R162: 0 | S162: 0 | T162: 205.7 | U162: 3964.65
A163: 12805 | B163: محمود شوقى محمد احمد العالم | C163: 2018-09-22 | F163: عامل صباغة | G163: 2019-02-01 | I163: 1700 | J163: 2271.4 | M163: 425 | O163: 1056 | P163: 3752.4 | Q163: 187 | R163: 0 | S163: 4.97 | T163: 191.97 | U163: 3560.43
A164: 12960 | B164: محمد جميل عبد السلام جمعه | C164: 2018-04-19 | F164: عامل صباغة | G164: 2018-07-18 | P164: 0 | T164: 0 | U164: 0
A165: 12986 | B165: عصمت احمد ابو زيد عبد الغفار | C165: 2016-11-15 | F165: عامل صباغة | G165: 2016-12-01 | I165: 1700 | J165: 2251.35 | M165: 425 | O165: 526 | P165: 3202.35 | Q165: 187 | R165: 0 | S165: 4.1 | T165: 191.1 | U165: 3011.25
A166: 13020 | B166: على خيرى شحاتة على | C166: 2017-02-09 | F166: عامل صباغة | G166: 2017-02-15 | I166: 1700 | J166: 2177.98 | M166: 425 | O166: 1317 | P166: 3919.98 | Q166: 187 | R166: 0 | S166: 1.88 | T166: 188.88 | U166: 3731.1
A167: 13184 | B167: وجدى شنودة فرويز جودة | C167: 2017-10-11 | F167: عامل صباغة | G167: 2017-11-07 | I167: 1700 | J167: 2321.35 | M167: 425 | O167: 805 | P167: 3551.35 | Q167: 187 | R167: 0 | S167: 5.23 | T167: 192.23 | U167: 3359.12
A168: 13709 | B168: اشرف عبد الستار محمد حسن | C168: 2018-11-20 | F168: عامل صباغة | G168: 2019-02-01 | I168: 1700 | J168: 2081.57 | M168: 425 | O168: 946 | P168: 3452.57 | Q168: 187 | R168: 0 | S168: 1.84 | T168: 188.84 | U168: 3263.73
A169: 13728 | B169: اسلام سمير عبد القوى حسن | C169: 2018-11-29 | F169: عامل صباغة | G169: 2019-02-01 | I169: 1700 | J169: 2081.57 | M169: 425 | O169: 774 | P169: 3280.57 | Q169: 187 | R169: 0 | S169: 1.99 | T169: 188.99 | U169: 3091.58
A170: 13776 | B170: محمد على عبد المنعم عبد الرحيم | C170: 2019-03-23 | F170: عامل صباغة | G170: 2019-08-01 | I170: 1700 | J170: 2168 | M170: 425 | O170: 257 | P170: 2850 | Q170: 187 | R170: 0 | S170: 7.53 | T170: 194.53 | U170: 2655.47
A171: 13936 | B171: مينا وديع كيرلس عوض الله | C171: 2019-07-22 | F171: عامل صباغة | G171: 2019-08-15 | I171: 1700 | J171: 2131.57 | M171: 425 | O171: 772 | P171: 3328.57 | Q171: 187 | R171: 0 | S171: 6.97 | T171: 193.97 | U171: 3134.6
A172: 13989 | B172: محمد عادل عبد الحميد الكومى | C172: 2019-10-01 | F172: عامل صباغة | G172: 2019-10-01 | P172: 0 | T172: 0 | U172: 0
A173: 13998 | B173: اشرف محمد فتحى محمد | C173: 2019-10-07 | F173: عامل صباغة | G173: 2019-11-05 | P173: 0 | T173: 0 | U173: 0
A174: 14057 | B174: بيشوى ظريف وقيم جرجس | C174: 2020-01-08 | F174: عامل صباغة | G174: 2020-06-01 | I174: 1700 | J174: 2168 | M174: 425 | O174: 259 | P174: 2852 | Q174: 187 | R174: 0 | S174: 6.24 | T174: 193.24 | U174: 2658.76
A175: 14243 | B175: احمد جابر السيد محمد شرف | C175: 2021-02-18 | F175: عامل صباغة | G175: 2021-02-18 | P175: 0 | T175: 0 | U175: 0
A176: 763 | B176: ماهر يونس محمد فهيم | C176: 1994-10-01 | F176: عامل صباغة | G176: 1996-06-01 | I176: 5550 | J176: 6859.5 | M176: 1387.5 | P176: 8247 | Q176: 610.5 | R176: 0 | S176: 2.27 | T176: 612.77 | U176: 7634.23
A177: 902 | B177: مخلص عبد الحميد فرج الله | C177: 1993-06-01 | F177: عامل صباغة | G177: 1995-12-16 | I177: 3750 | J177: 4664 | M177: 937.5 | O177: 1095 | P177: 6696.5 | Q177: 412.5 | R177: 0 | S177: 2.3 | T177: 414.8 | U177: 6281.7
A178: 943 | B178: هانى امين رزق سعد | C178: 1997-07-06 | F178: عامل صباغة | G178: 1997-08-20 | I178: 6910 | J178: 8540.5 | M178: 1727.5 | P178: 10268 | Q178: 760.1 | R178: 0 | S178: 12.66 | T178: 772.76 | U178: 9495.24
A179: 4961 | B179: اشرف السيد خليفه السيد | C179: 2004-02-18 | F179: مسئول أمن | G179: 2004-06-10 | I179: 2510 | J179: 4224.2 | M179: 627.5 | O179: 361 | P179: 5212.7 | Q179: 276.1 | R179: 0 | S179: 3.64 | T179: 279.74 | U179: 4932.96
A180: 8148 | B180: محمد محمد محمد قطب | C180: 2007-08-06 | F180: عامل نظافة | G180: 2007-09-27 | I180: 2000 | J180: 3364.7 | M180: 500 | O180: 2730 | P180: =SUM(J180:O180) -> 6594.7 | Q180: 220 | R180: 300 | S180: 0.27 | T180: 520.27 | U180: 6074.43
A181: 12613 | B181: ياسر سعيد مصطفى أحمد | C181: 2015-08-11 | F181: عامل مخزن | G181: 2015-09-13 | I181: 1700 | J181: 2564.35 | M181: 425 | O181: 2291 | P181: 5280.35 | Q181: 187 | R181: 0 | S181: 46.5 | T181: 233.5 | U181: 5046.85
A182: 9851 | B182: السيد احمد مأمون سلامة | C182: 2001-10-06 | F182: بائع | G182: 2010-08-01 | I182: 3010 | J182: 5366.95 | M182: 752.5 | O182: 770 | P182: =SUM(J182:O182) -> 6889.45 | Q182: 331.1 | R182: 0 | S182: 0 | T182: 331.1 | U182: 6558.35
A183: 9854 | B183: شيماء ابراهيم عبد الوهاب ابراهيم | C183: 2006-06-06 | F183: بائع | G183: 2010-11-07 | I183: 2020 | J183: 3620.9 | M183: 505 | P183: 4125.9 | Q183: 222.2 | R183: 0 | S183: 0 | T183: 222.2 | U183: 3903.7
A184: 4637 | B184: جمعه السيد السيد ابراهيم | C184: 2002-01-01 | F184: بائع | G184: 2010-10-02 | I184: 2120 | J184: 3594.5 | M184: 530 | O184: 1268 | P184: 5392.5 | Q184: 233.2 | R184: 0 | S184: 0 | T184: 233.2 | U184: 5159.3
A185: 10411 | B185: عماد لطفى عبد الباقى القمارى | C185: 1996-12-26 | F185: عامل نظافة | G185: 2010-10-02 | I185: 3630 | J185: 5066.8 | M185: 907.5 | P185: 5974.3 | Q185: 399.3 | R185: 0 | S185: 8.23 | T185: 407.53 | U185: 5566.77
A186: 13724 | B186: باسم احمد احمد محمد الشافعى | C186: 2018-12-06 | F186: مسئول تخطيط | G186: 2019-07-01 | I186: 4880 | J186: 6146.5 | M186: 1220 | N186: 550 | P186: 7916.5 | Q186: 536.8 | R186: 0 | S186: 0.51 | T186: 537.31 | U186: 7379.19
A187: 5371 | B187: محمد السيد حسين حافظ | C187: 2005-01-31 | F187: مسئول تخطيط | G187: 2005-02-01 | I187: 4770 | J187: 8211.5 | M187: 1192.5 | N187: 1250 | P187: 10654 | Q187: 524.7 | R187: 25.5 | S187: 0 | T187: 550.2 | U187: 10103.8
A188: 207 | B188: خلف محمود حسانين على | C188: 2016-04-01 | F188: مسئول تخطيط | G188: 2020-04-01 | I188: 4310 | J188: 5301.9 | M188: 1077.5 | P188: 6379.4 | Q188: 474.1 | R188: 0 | S188: 8.95 | T188: 483.05 | U188: 5896.35
A189: 371 | B189: عصام المحمدى محمد محمد | C189: 1995-12-10 | F189: مسئول تخطيط | G189: 1995-12-10 | I189: 5270 | J189: 6531.5 | M189: 1317.5 | P189: 7849 | Q189: 579.7 | R189: 0 | S189: 7.09 | T189: 586.79 | U189: 7262.21
A190: 4038 | B190: كريم سالم جعفر محمد | C190: 2001-07-14 | F190: مسئول تخطيط | G190: 2001-09-05 | P190: 0 | T190: 0 | U190: 0
A191: 5593 | B191: ابراهيم محمود محمد محمد | C191: 2005-06-14 | F191: مسئول متابعة انتاج وجوده | G191: 2005-07-11 | I191: 3400 | J191: 4357.7 | M191: 850 | P191: 5207.7 | Q191: 374 | R191: 0 | S191: 11.47 | T191: 385.47 | U191: 4822.23
A192: 5641 | B192: بشير محمود عبد العزيز سعد | C192: 2005-06-27 | F192: مسئول تخطيط | G192: 2005-08-10 | I192: 1780 | J192: 3002.05 | M192: 445 | O192: 1699 | P192: 5146.05 | Q192: 195.8 | R192: 0 | S192: 0 | T192: 195.8 | U192: 4950.25
A193: 13503 | B193: جون جندى جاد قديس | C193: 2018-07-09 | F193: مسئول تخطيط | G193: 2019-03-05 | I193: 2840 | J193: 4000.4 | M193: 710 | P193: 4710.4 | Q193: 312.4 | R193: 0 | S193: 0.97 | T193: 313.37 | U193: 4397.03
A194: 115 | B194: ميشيل توفيق منصور عوض | C194: 1996-01-01 | F194: محاسب | G194: 2004-11-02 | I194: 0 | J194: 8775 | M194: 0 | N194: 4500 | P194: 13275 | Q194: 0 | R194: 0 | S194: 4.45 | T194: 4.45 | U194: 13270.55
A195: 9598 | B195: وائل فوزى على خلف | C195: 2010-03-17 | F195: مسئول سلامة و أمن صناعي | G195: 2014-06-01 | I195: 2160 | J195: 3663 | M195: 540 | P195: 4203 | Q195: 237.6 | R195: 0 | S195: 0 | T195: 237.6 | U195: 3965.4
A196: 9066 | B196: محمود سعد محمود | C196: 1996-01-01 | F196: محامى | G196: عمالة مؤقتة | I196: 0 | J196: 20095 | M196: 0 | N196: 1500 | P196: 21595 | Q196: 0 | R196: 0 | S196: 0 | T196: 0 | U196: 21595
A197: 10260 | B197: محمد صلاح حمدى أحمد | C197: 2010-10-13 | F197: محامى | G197: 2010-11-07 | I197: 3970 | J197: 4898.35 | M197: 992.5 | N197: 3500 | P197: 9390.85 | Q197: 436.7 | R197: 0 | S197: 0 | T197: =SUM(Q197:S197) -> 436.7 | U197: =P197-T197 -> 8954.15
A198: 5 | B198: اشرف عطا عمر عمر | C198: 1998-07-05 | F198: رئيس قسم شئون العاملين | G198: 1998-08-09 | I198: 8610 | J198: 10645 | M198: 2152.5 | P198: 12797.5 | Q198: 947.1 | R198: 500 | S198: 0 | T198: 1447.1 | U198: 11350.4
A199: 1387 | B199: ممدوح عبدالحميد محمد على | C199: 1997-08-16 | F199: سكرتارية | G199: 1997-08-16 | I199: 2540 | J199: 3557.1 | M199: 635 | P199: 4192.1 | Q199: 279.4 | R199: 0 | S199: 0 | T199: 279.4 | U199: 3912.7
A200: 4629 | B200: وليد شعبان السيد اسماعيل | C200: 1996-10-15 | F200: سكرتارية | G200: 2004-07-01 | I200: 3660 | J200: 5250 | M200: 915 | N200: 500 | P200: 6665 | Q200: 402.6 | R200: 0 | S200: 5.53 | T200: 408.13 | U200: 6256.87
... 3165 more rows

Sheet التحليلى
A4: م | B4: اسم الموظف | C4: تاريخ التعيين | D4: رقم بطاقة الرقم القومى | E4: الرقم التأمينى | F4: الوظيفة الحالية | G4: تاريخ التأمين | H4: المرتب التأمينى | I4: المرتب الأساسى | J4: علاوة غير منضمة | K4: ملبس | L4: إنتقال | M4: مكافأت | N4: أضاقى | O4: أجمالى المستحق | P4: خصم حصة العامل من التأمينات | Q4: سلفة | R4: جزاء | S4: أجمالى الخصومات | T4: صافى المرتب المتحصل عليه
A5: 233 | B5: السيد السيد اسماعيل مصطفى | C5: 1994-08-01 | F5: عامل نسيج | G5: 1994-08-01
A6: 235 | B6: طارق محمد احمد خليل | C6: 1994-08-01 | F6: عامل نسيج | G6: 1994-08-01
A7: 243 | B7: رضا النوبى موسى محمد | C7: 1994-08-01 | F7: عامل نسيج | G7: 1994-08-01
A8: 244 | B8: عادل كمال على فراج | C8: 1997-09-22 | F8: عامل نسيج | G8: 1997-12-06
A9: 251 | B9: حسن عبد العزيز حسن | C9: 1996-03-10 | F9: عامل نسيج | G9: 2002-08-01
A10: 256 | B10: محمود محمد محمود محمد | C10: 1996-12-21 | F10: عامل نسيج | G10: 1997-02-01
A11: 257 | B11: عيسى جابر محمد ابراهيم | C11: 1998-02-04 | F11: عامل نسيج | G11: 1998-05-06
A12: 260 | B12: هانى محمد ابراهيم شعبان | C12: 1995-01-18 | F12: عامل نسيج | G12: 1995-07-31
A13: 267 | B13: محمد عبد الوارث على على | C13: 1999-11-28 | F13: عامل نسيج | G13: 1999-12-20
A14: 277 | B14: جمال ابو اليزيد على القط | C14: 1997-11-17 | F14: عامل نسيج | G14: 1997-11-22
A15: 404 | B15: محمد كامل على رضوان | C15: 1995-10-09 | F15: عامل نسيج | G15: 1995-10-09
A16: 456 | B16: محمود محمد زكريا بدر محمد | C16: 2007-01-06 | F16: عامل نسيج | G16: 2007-02-14
A17: 1552 | B17: هانى عبد الغنى احمد على ابويوسف | C17: 1997-03-03 | F17: عامل نسيج | G17: 1997-03-16
A18: 3789 | B18: شريف شاكر عبد الجيد شريف | C18: 2001-12-22 | F18: عامل نسيج | G18: 2009-09-01
A19: 4138 | B19: ايمن مصطفى حسين العسكرى | C19: 2000-06-04 | F19: عامل نسيج | G19: 2010-08-21
A20: 4882 | B20: شريف مصطفى محمود سالم | C20: 2004-01-04 | F20: عامل نسيج | G20: 2004-04-04
A21: 5627 | B21: عمرو داود سيد احمد اسماعيل | C21: 2005-06-12 | F21: عامل نسيج | G21: 2005-08-10
A22: 5741 | B22: محمد محمود محمد ابراهيم | C22: 2005-08-02 | F22: عامل نسيج | G22: 2006-04-13
A23: 6073 | B23: حسن محمد حسن على سليمان | C23: 2005-10-15 | F23: عامل نسيج | G23: 2006-02-02
A24: 6091 | B24: محمد عبد النبى محمد احمد | C24: 2005-11-12 | F24: عامل نسيج | G24: 2006-02-14
A25: 6718 | B25: صابر عبد العال خضر محمود | C25: 2006-01-16 | F25: عامل نسيج | G25: 2006-03-19
A26: 7798 | B26: محمد خليل خليل الديب | C26: 2007-03-03 | F26: عامل نسيج | G26: 2007-03-03
A27: 7984 | B27: هانى جمعه عبد الله احمد | C27: 2007-06-24 | F27: عامل نسيج | G27: 2007-07-04
A28: 8064 | B28: محمد حمدى احمد عبد الغنى البنا | C28: 2007-07-21 | F28: عامل نسيج | G28: 2007-08-12
A29: 9362 | B29: سامى السعيد عبد العزيز المجنى | C29: 2009-10-14 | F29: عامل نسيج | G29: 2010-02-01
A30: 9391 | B30: حسام الدين احمد محمد حسنين | C30: 2009-10-27 | F30: عامل نسيج | G30: 2010-02-01
A31: 9482 | B31: محمد السيد عوض عوض | C31: 2010-01-13 | F31: عامل نسيج | G31: 2010-03-10
A32: 10154 | B32: سمير منصور حسين ابو تركية م-1 | C32: 2010-10-05 | F32: عامل نسيج | G32: 2010-12-04
A33: 10434 | B33: محمد جبر محمد سعد | C33: 2010-12-18 | F33: عامل نسيج | G33: 2011-01-01
A34: 10607 | B34: عماد فتحى السيد حفنى | C34: 2011-03-13 | F34: عامل نسيج | G34: 2011-04-07
A35: 10944 | B35: محمد عبد النبى عبد العزيز الرخ | C35: 2011-10-03 | F35: عامل نسيج | G35: 2011-11-15
A36: 11435 | B36: رمضان شحاتة محمود مبروك | C36: 2012-10-07 | F36: عامل نسيج | G36: 2012-12-05
A37: 12516 | B37: ربيع رجب عيد محمد | C37: 2015-06-02 | F37: عامل نسيج | G37: 2015-07-01
A38: 13497 | B38: رزق عبدالعاطى سالم ابراهيم | C38: 2018-07-11 | F38: عامل نسيج | G38: 2018-07-18
A39: 13752 | B39: حسن محمد حسين منصور | C39: 2019-02-11 | F39: عامل نسيج | G39: 2019-06-01
A40: 13762 | B40: محمود محمد السيد سالم | C40: 2019-02-17 | F40: عامل نسيج | G40: 2019-08-01
A41: 13778 | B41: عبد الله قرشى ابو الوفا | C41: 2020-06-25 | F41: عامل نسيج | G41: 2020-07-01
A42: 181 | B42: سمير حسن محمد على | C42: 1993-09-01 | F42: عامل صيانة | G42: 1994-07-21
A43: 234 | B43: ياسر احمد عفيفى على | C43: 1995-01-01 | F43: عامل صيانة | G43: 1995-01-20
A44: 273 | B44: شعبان بكر اسماعيل احمد | C44: 1997-11-11 | F44: عامل صيانة | G44: 1997-12-06
A45: 4985 | B45: عادل توفيق احمد عبد الكريم | C45: 2004-03-09 | F45: عامل صيانة | G45: 2004-04-04
A46: 7133 | B46: احمد عبده محمد عبده | C46: 2006-05-27 | F46: عامل صيانة | G46: 2006-08-01
A47: 266 | B47: مجدى كمال عيسى تادرس | C47: 1995-12-14 | F47: عامل نسيج | G47: 1995-12-14
A48: 276 | B48: عماد عبد الغنى احمد على | C48: 1996-08-17 | F48: عامل نسيج | G48: 1996-09-24
A49: 282 | B49: عادل فتحى محمد ابراهيم | C49: 1999-12-06 | F49: عامل نسيج | G49: 2000-01-23
A50: 5851 | B50: ممدوح احمد موسى عبد الرحمن | C50: 2005-08-29 | F50: عامل نسيج | G50: 2005-12-03
A51: 7414 | B51: محمد شعبان السيد خليفه | C51: 2006-11-01 | F51: عامل نسيج | G51: 2006-11-19
A52: 12607 | B52: سامح رمزى مسعود دلوعه | C52: 2015-08-13 | F52: عامل نسيج | G52: 2015-08-20
A53: 452 | B53: سامح كمال عيسى تادرس | C53: 1992-06-01 | F53: مسئول متابعة انتاج وجوده | G53: 1995-05-28
A54: 453 | B54: سمير بسيونى ابراهيم الحوفى | C54: 1995-01-01 | F54: مسئول متابعة انتاج وجوده | G54: عمالة مؤقتة
A55: 454 | B55: السيد مصطفى السيد الدرديرى | C55: 1994-08-14 | F55: مسئول متابعة انتاج وجوده | G55: 1995-07-30
A56: 4140 | B56: محمد مرسى ابراهيم ابو المجد | C56: 2001-08-19 | F56: مسئول متابعة انتاج وجوده | G56: 2010-09-15
A57: 5731 | B57: تامر سعيد زكريا سعيد | C57: 2005-07-30 | F57: مسئول تخطيط | G57: 2005-12-03
A58: 7081 | B58: ايمن محمود على شامه | C58: 2006-05-06 | F58: مسئول متابعة انتاج وجوده | G58: 2006-06-01
A59: 8073 | B59: عادل صلاح ابراهيم محمد | C59: 2007-07-25 | F59: مسئول متابعة انتاج وجوده | G59: 2007-09-27
A60: 9306 | B60: عادل محمد الوردانى احمد | C60: 2009-02-18 | F60: مسئول متابعة انتاج وجوده | G60: 2009-03-10
A61: 755 | B61: خالد ثابت عبده حموده | C61: 1999-11-22 | F61: عامل صباغة | G61: 1999-12-07
A62: 760 | B62: فتحى توفيق حسن سالم | C62: 1994-12-15 | F62: عامل صباغة | G62: 1995-07-31
A63: 775 | B63: محمد حسن ابراهيم السيد | C63: 1996-03-23 | F63: عامل صباغة | G63: 1996-04-13
A64: 4698 | B64: علاء السعيد عوف عبد الرحمن | C64: 2003-08-13 | F64: عامل صباغة | G64: 2003-10-15
A65: 5241 | B65: عمرو خميس ابو عجيله بدوى | C65: 2004-07-08 | F65: عامل صباغة | G65: 2004-09-01
A66: 5394 | B66: رأفت محمد مصطفى صالح | C66: 2004-02-21 | F66: عامل صباغة | G66: 2005-04-06
A67: 5463 | B67: رجب محمود عبد العزيز سعد | C67: 2005-04-17 | F67: عامل صباغة | G67: 2005-06-04
A68: 5531 | B68: محمود فوزى عبد العليم عبد الناصر | C68: 2005-06-01 | F68: عامل صباغة | G68: 2005-07-11
A69: 5559 | B69: عمرو صبحى المحمدى امام | C69: 2005-06-07 | F69: عامل صباغة | G69: 2005-08-06
A70: 5762 | B70: مصطفى رزق ضيف اسماعيل | C70: 2005-08-08 | F70: عامل صباغة | G70: 2005-12-03
A71: 6644 | B71: فضل احمد فضل جاد | C71: 2005-12-19 | F71: عامل صباغة | G71: 2006-02-14
A72: 7344 | B72: محمد سعد بدوى بدوى | C72: 2006-09-10 | F72: عامل صباغة | G72: 2006-11-11
A73: 7518 | B73: محمد رزق ضيف اسماعيل | C73: 2006-11-30 | F73: عامل صباغة | G73: 2007-01-08
A74: 8163 | B74: محمد رمضان سعد بدوى | C74: 2007-08-13 | F74: عامل صباغة | G74: 2007-09-24
A75: 9432 | B75: محمد احمد فضل جاد م-1 | C75: 2009-12-01 | F75: عامل صباغة | G75: 2010-01-02
A76: 12649 | B76: ادريس جمعة معوض خميس | C76: 2015-10-11 | F76: عامل صباغة | G76: 2015-12-08
A77: 13005 | B77: امين محمد امين غريب | C77: 2016-12-25 | F77: عامل صباغة | G77: 2017-01-01
A78: 13119 | B78: محمد محمود كامل طه | C78: 2017-08-15 | F78: عامل صباغة | G78: 2017-08-22
A79: 13706 | B79: مصطفى عبد النبى مصطفى احمد | C79: 2018-11-15 | F79: عامل صباغة | G79: 2019-01-28
A80: 14216 | B80: ابراهيم احمد سالم احمد | C80: 2020-12-19 | F80: عامل صباغة | G80: 2021-01-02
A81: 752 | B81: حسام فاروق صديق صادق | C81: 1999-11-10 | F81: عامل صباغة | G81: 1999-12-20
A82: 5502 | B82: طارق محمد محروس مبروك | C82: 2005-05-10 | F82: مسئول متابعة انتاج وجوده | G82: 2005-07-11
A83: 8149 | B83: رضا عبد اللطيف احمد السيد | C83: 2007-08-04 | F83: مسئول متابعة انتاج وجوده | G83: 2007-09-27
A84: 8497 | B84: عبد الوهاب جمال ابراهيم السعيد | C84: 2007-12-01 | F84: مسئول متابعة انتاج وجوده | G84: 2008-01-14
A85: 8500 | B85: عبد الناصر خلف احمد شلنده | C85: 2007-12-01 | F85: مسئول متابعة انتاج وجوده | G85: 2008-01-14
A86: 13625 | B86: محمد جلال مرسى احمد مرسى | C86: 2018-10-01 | F86: مسئول متابعة انتاج وجوده | G86: 2019-01-01
A87: 13993 | B87: الباشا عاطف عبد المعز حسين | C87: 2019-10-03 | F87: مسئول متابعة انتاج وجوده | G87: عمالة مؤقتة
A88: 14067 | B88: ابراهيم حارس جاد الرب خليفة | C88: 2020-01-29 | F88: مسئول متابعة انتاج وجوده | G88: 2020-07-01
A89: 1050 | B89: محمد خميس سليمان حيدر | C89: 1994-06-01 | F89: عامل صباغة | G89: 1995-12-10
A90: 4103 | B90: جابر محمد عبد الرازق علام | C90: 2002-01-14 | F90: مهندس كميائى | G90: 2002-05-09
A91: 5898 | B91: عماد فاروق فهمى بشاى | C91: 2005-09-18 | F91: مهندس كميائى | G91: 2006-02-02
A92: 7611 | B92: وليد يونس فهيم السيد | C92: 2007-01-07 | F92: عامل صباغة | G92: 2007-02-14
A93: 8232 | B93: خالد محمد شعبان الصافى | C93: 2007-12-24 | F93: عامل صباغة | G93: 2010-05-03
A94: 12846 | B94: احمد محمد عبد اللطيف ابو عرب | C94: 2016-05-10 | F94: مهندس كميائى | G94: 2016-09-22
A95: 13735 | B95: محمد سعيد محمد محمود | C95: 2019-01-13 | F95: مهندس كميائى | G95: 2019-03-03
A96: 14223 | B96: عصام عبد الناصر عبد المقصود صديق | C96: 2021-01-10 | F96: مهندس كميائى | G96: 2021-02-01
A97: 9591 | B97: رجب عبد الفتاح عبد الرؤوف محمد م-1 | C97: 2010-03-09 | F97: مهندس صباغة | G97: 2010-04-10
A98: 13533 | B98: عمرو عبدالحليم سليمان عبدالحليم | C98: 2018-08-06 | F98: مهندس صباغة | G98: 2019-01-01
A99: 13628 | B99: طاهر رجب طاهر احمد عبدالرحيم | C99: 2018-10-07 | F99: مهندس صباغة | G99: 2019-01-01
A100: 13629 | B100: محمد عبداللطيف عبدالله عبدالفتاح | C100: 2018-10-07 | F100: مهندس صباغة | G100: 2019-01-01
A101: 13733 | B101: احمد نصر الدين ابو كمال | C101: 2019-01-15 | F101: مهندس صباغة | G101: 2019-02-01
A102: 913 | B102: محمود على يوسف احمد محمود | C102: 1995-08-01 | F102: عامل صباغة | G102: 1995-08-26
A103: 1055 | B103: عادل محمد حسين العش | C103: 1996-12-24 | F103: عامل صباغة | G103: 1997-01-01
A104: 6619 | B104: محمد خميس عبد ربه على رضوان | C104: 2005-12-08 | F104: عامل صباغة | G104: 2006-02-14
A105: 9385 | B105: تامر صابر محمد جميل | C105: 2009-10-26 | F105: عامل صباغة | G105: 2009-12-01
A106: 12845 | B106: طارق شوقى كامل درويش | C106: 2016-05-17 | F106: مهندس كميائى | G106: 2016-08-15
A107: 14152 | B107: احمد ياقوت احمد محمد | C107: 2020-07-13 | F107: عامل صباغة | G107: 2020-08-01
A108: 7355 | B108: ابراهيم محمد ابراهيم احمد | C108: 2006-09-21 | F108: عامل صباغة | G108: 2006-11-11
A109: 927 | B109: ايهاب طلعت احمد عبد اللطيف | C109: 1997-02-16 | F109: عامل صباغة | G109: 1997-05-02
A110: 3875 | B110: ابراهيم احمد علام عبد الله | C110: 2001-10-08 | F110: عامل صباغة | G110: 2001-11-01
A111: 754 | B111: رفعت محمد ابراهيم اسماعيل | C111: 1993-05-01 | F111: عامل صباغة | G111: 1995-12-10
A112: 762 | B112: اسماعيل احمد عبد الجليل جمعه | C112: 1994-09-01 | F112: عامل صباغة | G112: 1995-12-10
A113: 776 | B113: احمد عبد الحق ابو العنين حنفى | C113: 1996-05-18 | F113: عامل صباغة | G113: 1996-06-01
A114: 757 | B114: جمعه عبد الفتاح النوبى عبد القادر | C114: 1995-07-01 | F114: عامل صباغة | G114: 1995-07-31
A115: 777 | B115: عادل خميس ابو عجيله بدوى | C115: 1996-06-09 | F115: عامل صباغة | G115: 1996-07-01
A116: 780 | B116: محمد صالح عطية الله محمد | C116: 1998-10-21 | F116: عامل صباغة | G116: 1998-12-13
A117: 783 | B117: محمد محمود على السيد | C117: 1996-08-17 | F117: عامل صباغة | G117: 1997-11-01
A118: 5267 | B118: صبحى عبد الله عامر ابو الخير | C118: 2004-10-11 | F118: عامل صباغة | G118: 2004-11-06
A119: 7228 | B119: احمد محمد حسين عبد الغنى | C119: 2006-07-26 | F119: عامل صباغة | G119: 2006-09-02
A120: 8018 | B120: ابراهيم محمد ابراهيم رزق | C120: 2007-07-07 | F120: عامل صباغة | G120: 2007-07-17
A121: 8154 | B121: مصطفى صادق توفيق عبد الرحيم | C121: 2007-08-12 | F121: عامل صباغة | G121: 2007-09-27
A122: 9473 | B122: محمد رضا حسين عفيفى | C122: 2015-09-27 | F122: عامل صباغة | G122: 2015-10-13
A123: 12639 | B123: عاصم محمد فرج فرج | C123: 2015-09-19 | F123: عامل صباغة | G123: 2016-07-10
A124: 13248 | B124: محمد عوض محمد عبدالمقصود | C124: 2020-06-25 | F124: عامل صباغة | G124: 2019-02-01
A125: 13742 | B125: احمد بشير ابراهيم | C125: 2019-01-22 | F125: عامل صباغة | G125: 2019-02-11
A126: 14074 | B126: عبد الله محمد بدر على | C126: 2020-02-09 | F126: عامل صباغة | G126: 2020-06-01
A127: 794 | B127: احمد السعيد فهمى محمد | C127: 1997-05-05 | F127: عامل صباغة | G127: 1997-06-01
A128: 5820 | B128: احمد ابراهيم على مخلوف | C128: 2005-08-13 | F128: مهندس كميائى | G128: 2005-10-09
A129: 8223 | B129: عبد الحميد يحيى عبد الحميد احمد | C129: 2007-09-01 | F129: مهندس كميائى | G129: 2007-09-24
A130: 8566 | B130: حسن ابراهيم محمد محمود | C130: 2008-01-28 | F130: عامل صباغة | G130: 2008-03-01
A131: 283 | B131: عادل عبد البدير عويضه غالى | C131: 1996-12-24 | F131: عامل صباغة | G131: 1997-01-01
A132: 572 | B132: عبد المنعم حسين عبد الحليم محمد | C132: 1993-06-01 | F132: عامل صباغة | G132: 1995-12-16
A133: 756 | B133: محمد يونس مصطفى محمد | C133: 1994-12-15 | F133: عامل صباغة | G133: 1995-07-31
A134: 761 | B134: ياسر احمد عبد الغنى احمد | C134: 1994-09-06 | F134: عامل صباغة | G134: 1995-12-16
A135: 906 | B135: محمد ابو المعاطى عبد النبى مرسى | C135: 1994-12-15 | F135: عامل صباغة | G135: 1995-08-01
A136: 910 | B136: سعيد على يوسف احمد محمود | C136: 1995-07-01 | F136: عامل صباغة | G136: 1995-07-31
A137: 922 | B137: رمضان احمد سرور السيد | C137: 1997-08-14 | F137: عامل صباغة | G137: 1997-08-20
A138: 925 | B138: اسامه محمد اسماعيل عباس | C138: 2004-11-27 | F138: عامل صباغة | G138: 2004-12-01
A139: 926 | B139: خالد عبد الله عامر ابوالخير | C139: 1994-04-06 | F139: عامل صباغة | G139: 1995-05-20
A140: 931 | B140: على محمود على السيد | C140: 1998-01-10 | F140: عامل صباغة | G140: 1998-01-21
A141: 932 | B141: ياسر محمد سيد محمد | C141: 1999-08-16 | F141: عامل صباغة | G141: 1999-08-25
A142: 938 | B142: محمد كمال حسن على | C142: 1998-09-29 | F142: عامل صباغة | G142: 1998-09-29
A143: 1389 | B143: فؤاد كمال محمد مرسى | C143: 1999-04-04 | F143: عامل صباغة | G143: 1999-04-21
A144: 4239 | B144: عبدالجواد محمد عبدالجوادعبدالسلام | C144: 2002-07-04 | F144: عامل صباغة | G144: 2002-09-02
A145: 5042 | B145: محمد سعيد عبد الوهاب محمد | C145: 2008-02-17 | F145: عامل صباغة | G145: 2008-04-01
A146: 5523 | B146: سعيد بدير شعبان ابراهيم | C146: 2005-05-21 | F146: عامل صباغة | G146: 2005-07-11
A147: 5850 | B147: احمد رأفت محمد يوسف | C147: 2005-08-29 | F147: عامل صباغة | G147: 2005-10-09
A148: 6937 | B148: عيد فؤاد محمد عبد الحميد | C148: 2006-03-20 | F148: عامل صباغة | G148: 2006-04-13
A149: 7609 | B149: صبحى سليمان سليمان عبد الحليم | C149: 2007-01-09 | F149: عامل صباغة | G149: 2007-02-14
A150: 7665 | B150: احمد ابراهيم ياقوت اسماعيل | C150: 2007-01-16 | F150: عامل صباغة | G150: 2007-02-20
A151: 8460 | B151: يوسف محمد حسن خالد | C151: 2007-12-04 | F151: عامل صباغة | G151: 2008-01-01
A152: 9341 | B152: مراد فكرى مصطفى صالح م-1 | C152: 2009-10-03 | F152: عامل صباغة | G152: 2009-10-18
A153: 9405 | B153: محمود سليمان سليمان عبد الحليم | C153: 2009-11-05 | F153: عامل صباغة | G153: 2009-12-01
A154: 9520 | B154: محمد عبد الحليم سليمان عبد الحليم | C154: 2010-01-23 | F154: عامل صباغة | G154: 2010-03-10
A155: 9590 | B155: ياسر قاسم عبد الخالق عبد السلام | C155: 2010-03-08 | F155: عامل صباغة | G155: 2010-04-10
A156: 9608 | B156: سعد محمود سعد محمود م-1 | C156: 2010-03-21 | F156: عامل صباغة | G156: 2010-04-10
A157: 9987 | B157: احمد محمد احمد النجار-م1 | C157: 2010-08-19 | F157: عامل صباغة | G157: 2010-08-25
A158: 10003 | B158: عبد الجليل عوض عبد الجليل عبد الحميد | C158: 2010-08-24 | F158: عامل صباغة | G158: 2010-08-25
A159: 10016 | B159: احمد اسماعيل خميس بركات | C159: 2010-08-26 | F159: عامل صباغة | G159: 2010-09-18
A160: 10704 | B160: فكرى كمال فهمى ميخائيل | C160: 2011-04-28 | F160: عامل صباغة | G160: 2011-05-21
A161: 10887 | B161: محمد السيد محمد الحداد | C161: 2011-08-24 | F161: عامل صباغة | G161: 2011-09-20
A162: 11419 | B162: سعيد نصيب يوسف محمد الدمنى | C162: 2012-08-30 | F162: عامل صباغة | G162: 2012-10-18
A163: 12805 | B163: محمود شوقى محمد احمد العالم | C163: 2018-09-22 | F163: عامل صباغة | G163: 2019-02-01
A164: 12960 | B164: محمد جميل عبد السلام جمعه | C164: 2018-04-19 | F164: عامل صباغة | G164: 2018-07-18
A165: 12986 | B165: عصمت احمد ابو زيد عبد الغفار | C165: 2016-11-15 | F165: عامل صباغة | G165: 2016-12-01
A166: 13020 | B166: على خيرى شحاتة على | C166: 2017-02-09 | F166: عامل صباغة | G166: 2017-02-15
A167: 13184 | B167: وجدى شنودة فرويز جودة | C167: 2017-10-11 | F167: عامل صباغة | G167: 2017-11-07
A168: 13709 | B168: اشرف عبد الستار محمد حسن | C168: 2018-11-20 | F168: عامل صباغة | G168: 2019-02-01
A169: 13728 | B169: اسلام سمير عبد القوى حسن | C169: 2018-11-29 | F169: عامل صباغة | G169: 2019-02-01
A170: 13776 | B170: محمد على عبد المنعم عبد الرحيم | C170: 2019-03-23 | F170: عامل صباغة | G170: 2019-08-01
A171: 13936 | B171: مينا وديع كيرلس عوض الله | C171: 2019-07-22 | F171: عامل صباغة | G171: 2019-08-15
A172: 13989 | B172: محمد عادل عبد الحميد الكومى | C172: 2019-10-01 | F172: عامل صباغة | G172: 2019-10-01
A173: 13998 | B173: اشرف محمد فتحى محمد | C173: 2019-10-07 | F173: عامل صباغة | G173: 2019-11-05
A174: 14057 | B174: بيشوى ظريف وقيم جرجس | C174: 2020-01-08 | F174: عامل صباغة | G174: 2020-06-01
A175: 14243 | B175: احمد جابر السيد محمد شرف | C175: 2021-02-18 | F175: عامل صباغة | G175: 2021-02-18
A176: 763 | B176: ماهر يونس محمد فهيم | C176: 1994-10-01 | F176: عامل صباغة | G176: 1996-06-01
A177: 902 | B177: مخلص عبد الحميد فرج الله | C177: 1993-06-01 | F177: عامل صباغة | G177: 1995-12-16
A178: 943 | B178: هانى امين رزق سعد | C178: 1997-07-06 | F178: عامل صباغة | G178: 1997-08-20
A179: 4961 | B179: اشرف السيد خليفه السيد | C179: 2004-02-18 | F179: مسئول أمن | G179: 2004-06-10
A180: 8148 | B180: محمد محمد محمد قطب | C180: 2007-08-06 | F180: عامل نظافة | G180: 2007-09-27
A181: 12613 | B181: ياسر سعيد مصطفى أحمد | C181: 2015-08-11 | F181: عامل مخزن | G181: 2015-09-13
A182: 9851 | B182: السيد احمد مأمون سلامة | C182: 2001-10-06 | F182: بائع | G182: 2010-08-01
A183: 9854 | B183: شيماء ابراهيم عبد الوهاب ابراهيم | C183: 2006-06-06 | F183: بائع | G183: 2010-11-07
A184: 4637 | B184: جمعه السيد السيد ابراهيم | C184: 2002-01-01 | F184: بائع | G184: 2010-10-02
A185: 10411 | B185: عماد لطفى عبد الباقى القمارى | C185: 1996-12-26 | F185: عامل نظافة | G185: 2010-10-02
A186: 13724 | B186: باسم احمد احمد محمد الشافعى | C186: 2018-12-06 | F186: مسئول تخطيط | G186: 2019-07-01
A187: 5371 | B187: محمد السيد حسين حافظ | C187: 2005-01-31 | F187: مسئول تخطيط | G187: 2005-02-01
A188: 207 | B188: خلف محمود حسانين على | C188: 2016-04-01 | F188: مسئول تخطيط | G188: 2020-04-01
A189: 371 | B189: عصام المحمدى محمد محمد | C189: 1995-12-10 | F189: مسئول تخطيط | G189: 1995-12-10
A190: 4038 | B190: كريم سالم جعفر محمد | C190: 2001-07-14 | F190: مسئول تخطيط | G190: 2001-09-05
A191: 5593 | B191: ابراهيم محمود محمد محمد | C191: 2005-06-14 | F191: مسئول متابعة انتاج وجوده | G191: 2005-07-11
A192: 5641 | B192: بشير محمود عبد العزيز سعد | C192: 2005-06-27 | F192: مسئول تخطيط | G192: 2005-08-10
A193: 13503 | B193: جون جندى جاد قديس | C193: 2018-07-09 | F193: مسئول تخطيط | G193: 2019-03-05
A194: 115 | B194: ميشيل توفيق منصور عوض | C194: 1996-01-01 | F194: محاسب | G194: 2004-11-02
A195: 9598 | B195: وائل فوزى على خلف | C195: 2010-03-17 | F195: مسئول سلامة و أمن صناعي | G195: 2014-06-01
A196: 9066 | B196: محمود سعد محمود | C196: 1996-01-01 | F196: محامى | G196: عمالة مؤقتة
A197: 10260 | B197: محمد صلاح حمدى أحمد | C197: 2010-10-13 | F197: محامى | G197: 2010-11-07
A198: 5 | B198: اشرف عطا عمر عمر | C198: 1998-07-05 | F198: رئيس قسم شئون العاملين | G198: 1998-08-09
A199: 1387 | B199: ممدوح عبدالحميد محمد على | C199: 1997-08-16 | F199: سكرتارية | G199: 1997-08-16
A200: 4629 | B200: وليد شعبان السيد اسماعيل | C200: 1996-10-15 | F200: سكرتارية | G200: 2004-07-01
A201: 102 | B201: سامح فاروق فهمى بشاى م1 | C201: 2020-08-12 | F201: رئيس حسابات | G201: 2020-08-12
A202: 114 | B202: سامح فتحى عجبان لوقا | C202: 2000-02-05 | F202: محاسب | G202: 2000-04-01
A203: 116 | B203: محمد احمد على الديب | C203: 1998-02-19 | F203: محاسب | G203: 2012-04-10
... 345 more rows
